fUSD/lending_fUSD_20250530
["ID","MTS","AMOUNT","RATE_DAILY","PERIOD"]
[363124455,1748591451694,-345.2,0.00022191,2]
[363124456,1748591451704,-731.34,0.00022191,2]
[363124457,1748591451714,-420.0,0.00022191,2]
[363124458,1748591451725,-1137.36,0.00022191,2]
[363124459,1748591451734,-420.0,0.00022191,2]
[363124460,1748591451744,-420.0,0.00022191,2]
[363124461,1748591451754,-1190.74,0.00022191,2]
[363124462,1748591451764,-420.0,0.00022191,2]
[363124463,1748591451774,-1240.79,0.00022191,2]
[363124464,1748591451784,-420.0,0.00022191,2]
[363124465,1748591451794,-420.0,0.00022191,2]
[363124466,1748591451803,-420.0,0.00022191,2]
[363124467,1748591451813,-644.97,0.00022191,2]
[363124468,1748591451823,-826.81,0.00022191,2]
[363124469,1748591451834,-2806.32,0.00022191,2]
[363124470,1748591451844,-931.8,0.00022191,2]
[363124471,1748591451854,-839.39,0.00022191,2]
[363124472,1748591451864,-718.31,0.00022191,2]
[363124473,1748591451875,-624.3,0.00022191,2]
[363124474,1748591451884,-420.0,0.00022191,2]
[363124475,1748591451895,-1423.01,0.00022191,2]
[363124476,1748591451905,-420.0,0.00022191,2]
[363124477,1748591451915,-151.0,0.00022191,7]
[363124478,1748591451925,-151.0,0.00022191,7]
[363124479,1748591451936,-500.0,0.00022191,2]
[363124480,1748591451946,-676.43,0.00022191,2]
[363124481,1748591451956,-476.46,0.00022191,2]
[363124482,1748591451966,-1086.74,0.00022191,2]
[363124483,1748591451977,-784.13,0.00022191,2]
[363124484,1748591451987,-420.0,0.00022191,2]
[363124485,1748591451996,-1378.37,0.00022191,2]
[363124486,1748591452007,-1566.6,0.00022191,2]
[363124487,1748591452017,-497.29,0.00022191,2]
[363124488,1748591452026,-509.88,0.00022191,2]
[363124489,1748591452037,-568.89,0.00022191,2]
[363124490,1748591452047,-420.0,0.00022191,2]
[363124491,1748591452057,-1038.16,0.00022191,2]
[363124492,1748591452067,-420.0,0.00022191,2]
[363124493,1748591452078,-875.28,0.00022191,2]
[363124494,1748591452088,-1291.11,0.00022191,2]
[363124495,1748591452098,-620.61,0.00022191,2]
[363124496,1748591452108,-642.38,0.00022191,2]
[363124497,1748591452119,-1300.8,0.00022191,2]
[363124498,1748591452129,-420.0,0.00022191,2]
[363124499,1748591452140,-151.0,0.00022191,7]
[363124500,1748591452151,-420.0,0.00022191,2]
[363124501,1748591452163,-646.16,0.00022191,2]
[363124502,1748591452174,-613.75,0.00022191,2]
[363124503,1748591452185,-518.54,0.00022191,2]
[363124504,1748591452196,-420.0,0.00022191,2]
[363124505,1748591452208,-173.60756922,0.00022191,2]
[363124506,1748591452219,-1442.73,0.00022191,2]
[363124507,1748591452231,-388.97871371,0.00022191,2]
[363124508,1748591452242,-420.0,0.00022191,2]
[363124509,1748591452252,-895.03,0.00022191,2]
[363124510,1748591452262,-432.66,0.00022191,2]
[363124511,1748591452271,-420.0,0.00022191,2]
[363124512,1748591452281,-947.06,0.00022191,2]
[363124513,1748591452291,-893.69,0.00022191,2]
[363124514,1748591452299,-1980.22,0.00022191,2]
[363124515,1748591452309,-883.32,0.00022191,2]
[363124516,1748591452318,-1420.61,0.00022191,2]
[363124517,1748591452328,-420.0,0.00022191,2]
[363124518,1748591452338,-482.72,0.00022191,2]
[363124519,1748591452347,-420.0,0.00022191,2]
[363124520,1748591452357,-867.43,0.00022191,2]
[363124521,1748591452367,-1601.11,0.00022191,2]
[363124522,1748591452377,-151.0,0.00022191,7]
[363124523,1748591452388,-626.22,0.00022191,2]
[363124524,1748591452399,-151.0,0.00022191,7]
[363124525,1748591452409,-151.0,0.00022191,7]
[363124526,1748591452419,-681.6,0.00022191,2]
[363124527,1748591452429,-670.4,0.00022191,2]
[363124528,1748591452439,-151.0,0.00022191,7]
[363124529,1748591452449,-151.0,0.00022191,7]
[363124530,1748591452460,-286.752314,0.00022191,7]
[363124531,1748591452473,-420.0,0.00022191,2]
[363124532,1748591452483,-719.65,0.00022191,2]
[363124533,1748591452494,-545.34,0.00022191,2]
[363124534,1748591452504,-151.0,0.00022191,7]
[363124535,1748591452514,-420.0,0.00022191,2]
[363124536,1748591452524,-154.080537,0.00022191,7]
[363124537,1748591452534,-566.12,0.00022191,2]
[363124538,1748591452545,-153.35827,0.00022191,7]
[363124539,1748591452555,-420.0,0.00022191,2]
[363124540,1748591452566,-1091.32,0.00022191,2]
[363124541,1748591452577,-618.8,0.00022191,2]
[363124542,1748591452587,-420.0,0.00022191,2]
[363124543,1748591452597,-473.65,0.00022191,2]
[363124544,1748591452607,-601.12,0.00022191,2]
[363124545,1748591452617,-261.87117425,0.00022191,2]
[363124546,1748591452627,-960.19,0.00022191,2]
[363124547,1748591452637,-420.0,0.00022191,2]
[363124548,1748591452648,-605.53,0.00022191,2]
[363124549,1748591452659,-167.03626169,0.00022191,2]
[363124550,1748591452670,-151.0,0.00022191,7]
[363124551,1748591452905,-151.0,0.00022191,7]
[363124552,1748591452915,-420.0,0.00022191,2]
[363124553,1748591452925,-448.43,0.00022191,2]
[363124554,1748591452934,-154.921947,0.00022191,7]
[363124555,1748591452944,-548.38,0.00022191,2]
[363124556,1748591452955,-420.0,0.00022191,2]
[363124557,1748591452964,-420.0,0.00022191,2]
[363124558,1748591452975,-790.23,0.00022191,2]
[363124559,1748591452985,-420.0,0.00022191,2]
[363124560,1748591452995,-783.19,0.00022191,2]
[363124561,1748591453005,-493.62414178,0.00022191,2]
[363124562,1748591453014,-420.0,0.00022191,2]
[363124563,1748591453024,-759.29,0.00022191,2]
[363124564,1748591453034,-504.93249883,0.00022191,2]
[363124565,1748591453043,-170.3644901,0.00022191,2]
[363124566,1748591453053,-1304.3,0.00022191,2]
[363124567,1748591453063,-420.0,0.00022191,2]
[363124568,1748591453072,-1558.43,0.00022191,2]
[363124569,1748591453082,-550.98,0.00022191,2]
[363124570,1748591453092,-2568.18,0.00022191,2]
[363124571,1748591453101,-420.0,0.00022191,2]
[363124572,1748591453111,-420.0,0.00022191,2]
[363124573,1748591453120,-556.09,0.00022191,2]
[363124574,1748591453130,-1374.21,0.00022191,2]
[363124575,1748591453139,-420.0,0.00022191,2]
[363124576,1748591453149,-420.0,0.00022191,2]
[363124577,1748591453159,-420.0,0.00022191,2]
[363124578,1748591453172,-420.0,0.00022191,2]
[363124579,1748591453182,-420.0,0.00022191,2]
[363124580,1748591453192,-1433.94,0.00022191,2]
[363124581,1748591453202,-420.0,0.00022191,2]
[363124582,1748591453212,-2020.01,0.00022191,2]
[363124583,1748591453222,-420.0,0.00022191,2]
[363124584,1748591453232,-980.33,0.00022191,2]
[363124585,1748591453242,-420.0,0.00022191,2]
[363124586,1748591453253,-568.6,0.00022191,2]
[363124587,1748591453262,-420.0,0.00022191,2]
[363124588,1748591453272,-420.0,0.00022191,2]
[363124589,1748591453281,-1569.12,0.00022191,2]
[363124590,1748591453290,-420.0,0.00022191,2]
[363124591,1748591453300,-420.0,0.00022191,2]
[363124592,1748591453310,-420.0,0.00022191,2]
[363124593,1748591453319,-1048.02,0.00022191,2]
[363124594,1748591453329,-613.64,0.00022191,2]
[363124595,1748591453339,-420.0,0.00022191,2]
[363124596,1748591453348,-420.0,0.00022191,2]
[363124597,1748591453359,-420.0,0.00022191,2]
[363124598,1748591453369,-1323.48,0.00022191,2]
[363124599,1748591453378,-151.0,0.00022191,7]
[363124600,1748591453388,-151.0,0.00022191,7]
[363124601,1748591453397,-2410.04,0.00022191,2]
[363124602,1748591453407,-151.0,0.00022191,7]
[363124603,1748591453416,-151.0,0.00022191,7]
[363124604,1748591453426,-151.0,0.00022191,7]
[363124605,1748591453436,-151.0,0.00022191,7]
[363124606,1748591453446,-420.0,0.00022191,2]
[363124607,1748591453456,-420.0,0.00022191,2]
[363124608,1748591453465,-420.0,0.00022191,2]
[363124609,1748591453476,-420.0,0.00022191,2]
[363124610,1748591453485,-161.423711,0.00022191,7]
[363124611,1748591453494,-161.423711,0.00022191,7]
[363124612,1748591453503,-420.0,0.00022191,2]
[363124613,1748591453513,-591.79,0.00022191,2]
[363124614,1748591453523,-420.0,0.00022191,2]
[363124615,1748591453532,-420.0,0.00022191,2]
[363124616,1748591453543,-637.7,0.00022191,2]
[363124617,1748591453552,-1981.68,0.00022191,2]
[363124618,1748591453562,-161.423711,0.00022191,7]
[363124619,1748591453572,-161.423711,0.00022191,7]
[363124620,1748591453581,-1346.63,0.00022191,2]
[363124621,1748591453591,-1729.64,0.00022191,2]
[363124622,1748591453600,-420.0,0.00022191,2]
[363124623,1748591453609,-420.0,0.00022191,2]
[363124624,1748591453619,-500.0,0.00022191,2]
[363124625,1748591453628,-420.0,0.00022191,2]
[363124626,1748591453638,-1056.33,0.00022191,2]
[363124627,1748591453648,-631.58,0.00022191,2]
[363124628,1748591453658,-420.0,0.00022191,2]
[363124629,1748591453667,-420.0,0.00022191,2]
[363124630,1748591453677,-1190.34,0.00022191,2]
[363124631,1748591453687,-500.0,0.00022191,2]
[363124632,1748591453698,-420.0,0.00022191,2]
[363124633,1748591453708,-557.0,0.00022191,2]
[363124634,1748591453717,-1109.49,0.00022191,2]
[363124635,1748591453728,-420.0,0.00022191,2]
[363124636,1748591453738,-420.0,0.00022191,2]
[363124637,1748591453748,-828.99,0.00022191,2]
[363124638,1748591453758,-423.7,0.00022191,2]
[363124639,1748591453767,-448.91,0.00022191,2]
[363124640,1748591453777,-1147.48,0.00022191,2]
[363124641,1748591453787,-420.0,0.00022191,2]
[363124642,1748591453796,-151.29069845,0.00022191,2]
[363124643,1748591453806,-420.0,0.00022191,2]
[363124644,1748591453815,-420.0,0.00022191,2]
[363124645,1748591453825,-674.41,0.00022191,2]
[363124646,1748591453835,-420.0,0.00022191,2]
[363124647,1748591453844,-420.0,0.00022191,2]
[363124648,1748591453854,-552.16,0.00022191,2]
[363124649,1748591453863,-1089.82,0.00022191,2]
[363124650,1748591453873,-152.56483881,0.00022191,2]
[363124651,1748591453883,-420.0,0.00022191,2]
[363124652,1748591453892,-157.5611572,0.00022191,2]
[363124653,1748591453902,-500.0,0.00022191,2]
[363124654,1748591453912,-541.7,0.00022191,2]
[363124655,1748591453921,-420.0,0.00022191,2]
[363124656,1748591453931,-667.42,0.00022191,2]
[363124657,1748591453941,-420.88,0.00022191,2]
[363124658,1748591453950,-494.64,0.00022191,2]
[363124659,1748591453960,-1055.81,0.00022191,2]
[363124660,1748591453970,-420.0,0.00022191,2]
[363124661,1748591453980,-676.59,0.00022191,2]
[363124662,1748591453990,-478.59,0.00022191,2]
[363124663,1748591454000,-151.0,0.00022191,7]
[363124664,1748591454010,-151.0,0.00022191,7]
[363124665,1748591454020,-223.85,0.00022191,2]
[363124666,1748591454029,-420.0,0.00022191,2]
[363124667,1748591454039,-644.85,0.00022191,2]
[363124668,1748591454048,-457.41666003,0.00022191,2]
[363124669,1748591454058,-708.59,0.00022191,2]
[363124670,1748591454068,-420.0,0.00022191,2]
[363124671,1748591454078,-420.0,0.00022191,2]
[363124672,1748591454088,-455.81,0.00022191,2]
[363124673,1748591454098,-420.0,0.00022191,2]
[363124674,1748591454108,-518.38,0.00022191,2]
[363124675,1748591454118,-503.7571613,0.00022191,2]
[363124676,1748591454128,-657.89,0.00022191,2]
[363124677,1748591454138,-420.0,0.00022191,2]
[363124678,1748591454148,-4964.17,0.00022191,2]
[363124679,1748591454159,-420.0,0.00022191,2]
[363124680,1748591454173,-420.0,0.00022191,2]
[363124681,1748591454183,-585.13,0.00022191,2]
[363124682,1748591454192,-420.0,0.00022191,2]
[363124683,1748591454202,-721.97,0.00022191,2]
[363124684,1748591454212,-153.98187331,0.00022191,2]
[363124685,1748591454222,-420.0,0.00022191,2]
[363124686,1748591454231,-836.0,0.00022191,2]
[363124687,1748591454242,-2320.942705,0.00022191,7]
[363124688,1748591454251,-580.44,0.00022191,2]
[363124689,1748591454261,-420.0,0.00022191,2]
[363124690,1748591454271,-2320.942705,0.00022191,7]
[363124691,1748591454280,-460.89,0.00022191,2]
[363124692,1748591454290,-420.0,0.00022191,2]
[363124693,1748591454299,-708.56,0.00022191,2]
[363124694,1748591454309,-694.67,0.00022191,2]
[363124695,1748591454319,-1074.12,0.00022191,2]
[363124696,1748591454328,-450.48,0.00022191,2]
[363124697,1748591454337,-420.0,0.00022191,2]
[363124698,1748591454347,-2320.942705,0.00022191,7]
[363124699,1748591454356,-316.93293961,0.00022191,2]
[363124700,1748591454367,-2320.942705,0.00022191,7]
[363124701,1748591454376,-534.0,0.00022191,2]
[363124702,1748591454386,-420.0,0.00022191,2]
[363124703,1748591454395,-518.88265141,0.00022191,2]
[363124704,1748591454405,-864.57,0.00022191,2]
[363124705,1748591454414,-646.72,0.00022191,2]
[363124706,1748591454424,-1108.21,0.00022191,2]
[363124707,1748591454433,-150.0,0.00022191,2]
[363124708,1748591454443,-420.0,0.00022191,2]
[363124709,1748591454452,-672.94,0.00022191,2]
[363124710,1748591454462,-3024.98,0.00022191,2]
[363124711,1748591454471,-150.0,0.00022191,2]
[363124712,1748591454481,-1051.67,0.00022191,2]
[363124713,1748591454491,-525.4460781,0.00022191,2]
[363124714,1748591454501,-2102.09,0.00022191,2]
[363124715,1748591454511,-984.1,0.00022191,2]
[363124716,1748591454520,-1454.98,0.00022191,2]
[363124717,1748591454529,-151.0,0.00022191,7]
[363124718,1748591454539,-990.15,0.00022191,2]
[363124719,1748591454550,-151.0,0.00022191,7]
[363124720,1748591454559,-420.0,0.00022191,2]
[363124721,1748591454570,-572.2,0.00022191,2]
[363124722,1748591454579,-511.2,0.00022191,2]
[363124723,1748591454589,-151.0,0.00022191,7]
[363124724,1748591454598,-1451.34,0.00022191,2]
[363124725,1748591454608,-683.44,0.00022191,2]
[363124726,1748591454618,-500.0,0.00022191,2]
[363124727,1748591454627,-1056.7,0.00022191,2]
[363124728,1748591454636,-1270.97,0.00022191,2]
[363124729,1748591454646,-1412.18,0.00022191,2]
[363124730,1748591454657,-1160.63,0.00022191,2]
[363124731,1748591454666,-420.0,0.00022191,2]
[363124732,1748591454676,-512.94,0.00022191,2]
[363124733,1748591454685,-420.0,0.00022191,2]
[363124734,1748591454695,-420.0,0.00022191,2]
[363124735,1748591454704,-420.0,0.00022191,2]
[363124736,1748591454714,-313.2996,0.00022191,2]
[363124737,1748591454724,-420.0,0.00022191,2]
[363124738,1748591454734,-579.11,0.00022191,2]
[363124739,1748591454743,-668.36,0.00022191,2]
[363124740,1748591454753,-782.71,0.00022191,2]
[363124741,1748591454764,-420.0,0.00022191,2]
[363124742,1748591454774,-420.0,0.00022191,2]
[363124743,1748591454784,-420.0,0.00022191,2]
[363124744,1748591454793,-1049.87,0.00022191,2]
[363124745,1748591454803,-554.36,0.00022191,2]
[363124746,1748591454812,-420.0,0.00022191,2]
[363124747,1748591454822,-928.52,0.00022191,2]
[363124748,1748591454832,-1147.82,0.00022191,2]
[363124749,1748591454842,-420.0,0.00022191,2]
[363124750,1748591454853,-420.0,0.00022191,2]
[363124751,1748591454863,-663.98,0.00022191,2]
[363124752,1748591454872,-437.18,0.00022191,2]
[363124753,1748591454882,-1369.72,0.00022191,2]
[363124754,1748591454891,-420.0,0.00022191,2]
[363124755,1748591454901,-420.0,0.00022191,2]
[363124756,1748591454911,-1471.23,0.00022191,2]
[363124757,1748591454921,-9728.0,0.00022191,2]
[363124758,1748591454931,-11117.28,0.00022191,2]
[363124759,1748591454940,-596.17,0.00022191,2]
[363124760,1748591454950,-420.0,0.00022191,2]
[363124761,1748591454960,-1135.05,0.00022191,2]
[363124762,1748591454970,-420.0,0.00022191,2]
[363124763,1748591454979,-529.39,0.00022191,2]
[363124764,1748591454988,-420.0,0.00022191,2]
[363124765,1748591454998,-420.0,0.00022191,2]
[363124766,1748591455008,-912.08,0.00022191,2]
[363124767,1748591455017,-537.6396823,0.00022191,2]
[363124768,1748591455027,-524.39,0.00022191,2]
[363124769,1748591455036,-456.18,0.00022191,2]
[363124770,1748591455046,-688.31,0.00022191,2]
[363124771,1748591455056,-1666.21,0.00022191,2]
[363124772,1748591455066,-807.29,0.00022191,2]
[363124773,1748591455075,-420.0,0.00022191,2]
[363124774,1748591455085,-420.0,0.00022191,2]
[363124775,1748591455095,-1257.54,0.00022191,2]
[363124776,1748591455105,-278.67,0.00022191,2]
[363124777,1748591455114,-1007.28,0.00022191,2]
[363124778,1748591455124,-2544.58,0.00022191,2]
[363124779,1748591455134,-420.0,0.00022191,2]
[363124780,1748591455144,-12607.12,0.00022191,2]
[363124781,1748591455155,-420.0,0.00022191,2]
[363124782,1748591455166,-172.6,0.00022191,2]
[363124783,1748591455176,-420.0,0.00022191,2]
[363124784,1748591455185,-420.0,0.00022191,2]
[363124785,1748591455195,-2044.57,0.00022191,2]
[363124786,1748591455283,-737.31,0.00022191,2]
[363124787,1748591455293,-1474.47,0.00022191,2]
[363124788,1748591455303,-782.0,0.00022191,2]
[363124789,1748591455313,-420.0,0.00022191,2]
[363124790,1748591455322,-909.0,0.00022191,2]
[363124791,1748591455332,-110122.48341866,0.00022191,2]
[363124792,1748591456370,157.31,0.00013699,2]
[363124793,1748591456504,157.31,0.00013699,2]
[363124794,1748591456516,-420.0,0.00021917,2]
[363124795,1748591456526,-104.97445,0.00021917,2]
[363124796,1748591456538,-62.72110169,0.00021917,2]
[363124797,1748591456547,-425.16902678,0.00021917,2]
[363124798,1748591456583,-248.46097322,0.00021917,2]
[363124799,1748591456593,-934.19,0.00021917,2]
[363124800,1748591456603,-231.88196858,0.00022191,2]
[363124801,1748591456617,-25176.39461276,0.00022191,2]
[363124802,1748591456627,-5611.98,0.00022191,2]
[363124803,1748591456639,-420.0,0.00022191,2]
[363124804,1748591456648,-500.0,0.00022191,2]
[363124805,1748591456658,-420.0,0.00022191,2]
[363124806,1748591456668,-478.21,0.00022191,2]
[363124807,1748591456677,-420.0,0.00022191,2]
[363124808,1748591456687,-1152.76,0.00022191,2]
[363124809,1748591456696,-34291.47,0.00022191,2]
[363124810,1748591456706,-688.39,0.00022191,2]
[363124811,1748591456715,-151.0,0.00022191,7]
[363124812,1748591456727,-865.43,0.00022191,2]
[363124813,1748591456737,-151.0,0.00022191,7]
[363124814,1748591456746,-1000.43,0.00022191,2]
[363124815,1748591456756,-152.933742,0.00022191,7]
[363124816,1748591456765,-7428.12,0.00022191,2]
[363124817,1748591456775,-3418.37,0.00022191,2]
[363124818,1748591456784,-420.0,0.00022191,2]
[363124819,1748591456794,-721.37,0.00022191,2]
[363124820,1748591456804,-420.0,0.00022191,2]
[363124821,1748591456813,-420.0,0.00022191,2]
[363124822,1748591456823,-217.36,0.00022191,2]
[363124823,1748591456832,-604.94,0.00022191,2]
[363124824,1748591456842,-420.0,0.00022191,2]
[363124825,1748591456851,-11043.57,0.00022191,2]
[363124826,1748591456861,-420.0,0.00022191,2]
[363124827,1748591456871,-1027.5,0.00022191,2]
[363124828,1748591456881,-420.0,0.00022191,2]
[363124829,1748591456891,-420.0,0.00022191,2]
[363124830,1748591456901,-428.85,0.00022191,2]
[363124831,1748591456910,-420.0,0.00022191,2]
[363124832,1748591456920,-546.38,0.00022191,2]
[363124833,1748591456930,-1553.23,0.00022191,2]
[363124834,1748591456940,-420.0,0.00022191,2]
[363124835,1748591456949,-421.74,0.00022191,2]
[363124836,1748591456959,-500.0,0.00022191,2]
[363124837,1748591456969,-632.79,0.00022191,2]
[363124838,1748591456981,-420.0,0.00022191,2]
[363124839,1748591456992,-1247.22,0.00022191,2]
[363124840,1748591457002,-420.0,0.00022191,2]
[363124841,1748591457012,-420.0,0.00022191,2]
[363124842,1748591457022,-1169.18,0.00022191,2]
[363124843,1748591457032,-1310.05,0.00022191,2]
[363124844,1748591457041,-300.0,0.00022191,2]
[363124845,1748591457051,-1142.16,0.00022191,2]
[363124846,1748591457061,-938.09,0.00022191,2]
[363124847,1748591457071,-420.0,0.00022191,2]
[363124848,1748591457080,-1997.55,0.00022191,2]
[363124849,1748591457090,-420.0,0.00022191,2]
[363124850,1748591457100,-420.0,0.00022191,2]
[363124851,1748591457110,-1849.93,0.00022191,2]
[363124852,1748591457120,-420.0,0.00022191,2]
[363124853,1748591457130,-901.65,0.00022191,2]
[363124854,1748591457139,-909.23,0.00022191,2]
[363124855,1748591457149,-160.0,0.00022191,2]
[363124856,1748591457159,-1336.02,0.00022191,2]
[363124857,1748591457172,-943.69,0.00022191,2]
[363124858,1748591457182,-420.0,0.00022191,2]
[363124859,1748591457192,-420.0,0.00022191,2]
[363124860,1748591457202,-976.06,0.00022191,2]
[363124861,1748591457213,-2222.91,0.00022191,2]
[363124862,1748591457222,-420.0,0.00022191,2]
[363124863,1748591457232,-1474.14,0.00022191,2]
[363124864,1748591457241,-3401.55,0.00022191,2]
[363124865,1748591457252,-816.0,0.00022191,2]
[363124866,1748591457262,-412.99968767,0.00022191,2]
[363124867,1748591457271,-743.1,0.00022191,2]
[363124868,1748591457281,-422.6,0.00022191,2]
[363124869,1748591457291,-420.0,0.00022191,2]
[363124870,1748591457301,-336.8506503,0.00022191,2]
[363124871,1748591457314,-420.0,0.00022191,2]
[363124872,1748591457323,-165.33875953,0.00022191,2]
[363124873,1748591457333,-420.0,0.00022191,2]
[363124874,1748591457342,-160.0,0.00022191,2]
[363124875,1748591457352,-420.0,0.00022191,2]
[363124876,1748591457362,-4460.6,0.00022191,2]
[363124877,1748591457371,-384.88494013,0.00022191,2]
[363124878,1748591457380,-420.0,0.00022191,2]
[363124879,1748591457390,-1459.11,0.00022191,2]
[363124880,1748591457399,-3290.51,0.00022191,2]
[363124881,1748591457409,-160.0,0.00022191,2]
[363124882,1748591457419,-420.0,0.00022191,2]
[363124883,1748591457429,-420.0,0.00022191,2]
[363124884,1748591457438,-420.0,0.00022191,2]
[363124885,1748591457448,-967.63,0.00022191,2]
[363124886,1748591457458,-3140.91,0.00022191,2]
[363124887,1748591457468,-420.0,0.00022191,2]
[363124888,1748591457478,-1023.89,0.00022191,2]
[363124889,1748591457488,-420.0,0.00022191,2]
[363124890,1748591457497,-537.86,0.00022191,2]
[363124891,1748591457508,-5515.56,0.00022191,2]
[363124892,1748591457518,-982.62,0.00022191,2]
[363124893,1748591457527,-1556.02,0.00022191,2]
[363124894,1748591457537,-420.0,0.00022191,2]
[363124895,1748591457547,-597.22,0.00022191,2]
[363124896,1748591457557,-8182.72,0.00022191,2]
[363124897,1748591457567,-708.29,0.00022191,2]
[363124898,1748591457576,-3312.99,0.00022191,2]
[363124899,1748591457586,-1472.96,0.00022191,2]
[363124900,1748591457596,-420.0,0.00022191,2]
[363124901,1748591457605,-2767.03,0.00022191,2]
[363124902,1748591457615,-158.87,0.00022191,2]
[363124903,1748591457625,-744.63,0.00022191,2]
[363124904,1748591457635,-685.13,0.00022191,2]
[363124905,1748591457645,-1433.17,0.00022191,2]
[363124906,1748591457654,-1651.91,0.00022191,2]
[363124907,1748591457664,-1255.57,0.00022191,2]
[363124908,1748591457673,-160.0,0.00022191,2]
[363124909,1748591457683,-160.0,0.00022191,2]
[363124910,1748591457693,-12821.95,0.00022191,2]
[363124911,1748591457702,-420.0,0.00022191,2]
[363124912,1748591457712,-420.0,0.00022191,2]
[363124913,1748591457722,-151.0,0.00022191,7]
[363124914,1748591457732,-420.0,0.00022191,2]
[363124915,1748591457740,-151.0,0.00022191,7]
[363124916,1748591457750,-420.0,0.00022191,2]
[363124917,1748591457760,-151.0,0.00022191,7]
[363124918,1748591457769,-665.69,0.00022191,2]
[363124919,1748591457779,-6637.73,0.00022191,2]
[363124920,1748591457789,-736.64,0.00022191,2]
[363124921,1748591457800,-3184.35,0.00022191,2]
[363124922,1748591457810,-162.74630269,0.00022191,2]
[363124923,1748591457820,-7456.06,0.00022191,2]
[363124924,1748591457830,-151.0,0.00022191,7]
[363124925,1748591457839,-151.0,0.00022191,7]
[363124926,1748591457849,-420.0,0.00022191,2]
[363124927,1748591457859,-877.0,0.00022191,2]
[363124928,1748591457868,-1015.9,0.00022191,2]
[363124929,1748591457878,-195.211892,0.00022191,7]
[363124930,1748591457888,-527.07,0.00022191,2]
[363124931,1748591457897,-420.0,0.00022191,2]
[363124932,1748591457907,-420.0,0.00022191,2]
[363124933,1748591457917,-420.0,0.00022191,2]
[363124934,1748591457927,-1962.22,0.00022191,2]
[363124935,1748591457936,-420.0,0.00022191,2]
[363124936,1748591457946,-479.22,0.00022191,2]
[363124937,1748591457956,-420.0,0.00022191,2]
[363124938,1748591457966,-469.93,0.00022191,2]
[363124939,1748591457976,-4029.62985039,0.00022191,2]
[363124940,1748591457992,-500.0,0.00022191,2]
[363124941,1748591458004,-1053.37913789,0.00022191,2]
[363124942,1748591458071,-60.64138358,0.00022191,2]
[363124943,1748591458083,-2083.861527,0.00022191,2]
[363124944,1748591458095,-2108.90810114,0.00022191,2]
[363124945,1748591458106,-2094.77,0.00022191,2]
[363124946,1748591458116,-420.0,0.00022191,2]
[363124947,1748591458127,-160.0,0.00022191,2]
[363124948,1748591458137,-420.0,0.00022191,2]
[363124949,1748591458147,-151.0,0.00022191,7]
[363124950,1748591458158,-975.42,0.00022191,2]
[363124951,1748591458172,-151.0,0.00022191,7]
[363124952,1748591458183,-190.72066622,0.00022191,2]
[363124953,1748591458193,-151.0,0.00022191,7]
[363124954,1748591458203,-1526.57,0.00022191,2]